[Event "Open Nuevo Centro. Jornada 1"]
[Site "Chess.com"]
[Date "2020.06.19"]
[Round "6"]
[White "Salvador Buiza, Victor"]
[Black "G�mez Alonso, �scar"]
[Result "1-0"]
[WhiteElo "1543"]
[BlackElo "1746"]
[TimeControl "180+2"]
[EndTime "11:36:45 PDT"]
[Termination "Victoria de TERROROSCURO666 por jaque mate"]

1. e4 {[%clk 0:03:01.9]} 1... c5 {[%clk 0:03:00.5]} 2. Nf3 {[%clk 0:03:02.5]}
2... e6 {[%clk 0:03:01.3]} 3. c3 {[%clk 0:03:02.2]} 3... d5 {[%clk 0:03:01.7]}
4. exd5 {[%clk 0:03:03.5]} 4... exd5 {[%clk 0:03:03.6]} 5. d4 {[%clk 0:03:04.9]}
5... Nf6 {[%clk 0:03:04]} 6. Bd3 {[%clk 0:03:04.1]} 6... cxd4 {[%clk 0:03:04.8]}
7. Nxd4 {[%clk 0:03:02.8]} 7... Nc6 {[%clk 0:03:05.2]} 8. Be3 {[%clk 0:03:02]}
8... Bd6 {[%clk 0:03:04.7]} 9. O-O {[%clk 0:03:00]} 9... O-O {[%clk 0:03:05.4]}
10. h3 {[%clk 0:02:59.1]} 10... a6 {[%clk 0:02:59.3]} 11. Nd2 {[%clk 0:02:56.7]}
11... Re8 {[%clk 0:02:57.9]} 12. Re1 {[%clk 0:02:54.7]} 12... Ne4 {[%clk
0:02:58.4]} 13. Nxe4 {[%clk 0:02:47.8]} 13... dxe4 {[%clk 0:02:59]} 14. Bc2
{[%clk 0:02:46.7]} 14... Nxd4 {[%clk 0:02:57.4]} 15. Bxd4 {[%clk 0:02:45.8]}
15... Bf5 {[%clk 0:02:52.5]} 16. Qd2 {[%clk 0:02:26.4]} 16... Bc7 {[%clk
0:02:47.8]} 17. Re2 {[%clk 0:02:15.7]} 17... Qd6 {[%clk 0:02:45.2]} 18. g3
{[%clk 0:02:09]} 18... Bxh3 {[%clk 0:02:41.4]} 19. Rxe4 {[%clk 0:02:03.9]} 19...
Qc6 {[%clk 0:02:29.8]} 20. Rae1 {[%clk 0:01:55.7]} 20... Rxe4 {[%clk 0:02:21.7]}
21. Bxe4 {[%clk 0:01:54.1]} 21... Qd7 {[%clk 0:02:04.1]} 22. Qg5 {[%clk
0:01:49.4]} 22... g6 {[%clk 0:01:51.5]} 23. Qh6 {[%clk 0:01:42.5]} 23... f5
{[%clk 0:01:45.8]} 24. Bd5+ {[%clk 0:01:38.8]} 24... Qf7 {[%clk 0:01:25.5]} 25.
Qg7# {[%clk 0:01:37.4]} 1

[Event "Open Nuevo Centro. Jornada 1"]
[Site "Chess.com"]
[Date "2020.06.19"]
[Round "6"]
[White "R�os Valle, Daniel "]
[Black "Grigorev, Artur "]
[Result "1-0"]
[WhiteElo "1188"]
[BlackElo "889"]
[TimeControl "180+2"]
[EndTime "11:36:50 PDT"]
[Termination "Victoria de danielrios010309 por abandono"]

1. e4 {[%clk 0:03:01.9]} 1... e5 {[%clk 0:02:57.7]} 2. Nf3 {[%clk 0:03:01.3]}
2... Nc6 {[%clk 0:02:53.2]} 3. Bb5 {[%clk 0:03:02.1]} 3... Bc5 {[%clk
0:02:46.6]} 4. Bxc6 {[%clk 0:02:59.6]} 4... dxc6 {[%clk 0:02:45.9]} 5. O-O
{[%clk 0:02:57.7]} 5... Nf6 {[%clk 0:02:43.6]} 6. d3 {[%clk 0:02:57.6]} 6... h6
{[%clk 0:02:43.4]} 7. Nxe5 {[%clk 0:02:55.8]} 7... Qe7 {[%clk 0:02:43.3]} 8. Nf3
{[%clk 0:02:54.9]} 8... Bd6 {[%clk 0:02:35.1]} 9. b3 {[%clk 0:02:56]} 9... Bg4
{[%clk 0:02:28]} 10. Bb2 {[%clk 0:02:51.1]} 10... Bxf3 {[%clk 0:02:25]} 11. Qxf3
{[%clk 0:02:50.3]} 11... O-O {[%clk 0:02:23]} 12. Re1 {[%clk 0:02:47.7]} 12...
c5 {[%clk 0:02:18.9]} 13. e5 {[%clk 0:02:47]} 13... Nd7 {[%clk 0:01:47.5]} 14.
Qg3 {[%clk 0:02:31.4]} 14... Bxe5 {[%clk 0:01:39.4]} 15. Bxe5 {[%clk 0:02:27]}
15... Nxe5 {[%clk 0:01:39.9]} 16. Qxe5 {[%clk 0:02:25.3]} 16... Qxe5 {[%clk
0:01:40.3]} 17. Rxe5 {[%clk 0:02:24.6]} 17... Rae8 {[%clk 0:01:41.1]} 18. Rxe8
{[%clk 0:02:19.6]} 18... Rxe8 {[%clk 0:01:41.7]} 19. Nc3 {[%clk 0:02:20.5]}
19... Kh7 {[%clk 0:01:40.3]} 20. f3 {[%clk 0:02:19.1]} 20... b6 {[%clk
0:01:35.4]} 21. Kf2 {[%clk 0:02:19.4]} 21... g5 {[%clk 0:01:31.9]} 22. Nd5
{[%clk 0:02:18.3]} 22... c6 {[%clk 0:01:30.5]} 23. Nf6+ {[%clk 0:02:18]} 23...
Kg7 {[%clk 0:01:27.3]} 24. Nxe8+ {[%clk 0:02:18.5]} 24... Kg6 {[%clk 0:01:28.2]}
25. Re1 {[%clk 0:02:16.9]} 25... Kh5 {[%clk 0:01:25.6]} 26. Re7 {[%clk
0:02:14.8]} 26... f5 {[%clk 0:01:25]} 27. Rxa7 {[%clk 0:02:14.2]} 27... f4
{[%clk 0:01:25.5]} 28. Rg7 {[%clk 0:01:58.3]} 1

[Event "Open Nuevo Centro. Jornada 1"]
[Site "Chess.com"]
[Date "2020.06.19"]
[Round "6"]
[White "Garcia Oviedo, Alejandro"]
[Black "Bosch Jord�, Ricard"]
[Result "0-1"]
[WhiteElo "1837"]
[BlackElo "1777"]
[TimeControl "180+2"]
[EndTime "11:37:00 PDT"]
[Termination "Victoria de UltimateLimo por abandono"]

1. e4 {[%clk 0:03:01.9]} 1... c6 {[%clk 0:03:00]} 2. Nf3 {[%clk 0:03:01.8]} 2...
d5 {[%clk 0:03:01]} 3. Nc3 {[%clk 0:03:03.2]} 3... dxe4 {[%clk 0:03:01.5]} 4.
Nxe4 {[%clk 0:03:05.1]} 4... Nd7 {[%clk 0:03:02.6]} 5. Bc4 {[%clk 0:02:55.9]}
5... g6 {[%clk 0:02:52.4]} 6. Qe2 {[%clk 0:02:55.1]} 6... Ndf6 {[%clk
0:02:44.4]} 7. Neg5 {[%clk 0:02:39.5]} 7... Nh6 {[%clk 0:02:42.1]} 8. d3 {[%clk
0:02:27.4]} 8... Bg7 {[%clk 0:02:40.8]} 9. O-O {[%clk 0:02:23.9]} 9... O-O
{[%clk 0:02:34.9]} 10. Bd2 {[%clk 0:02:19.4]} 10... Nf5 {[%clk 0:02:33.7]} 11.
Rfe1 {[%clk 0:02:16.5]} 11... e6 {[%clk 0:02:32.9]} 12. Bc3 {[%clk 0:02:12.6]}
12... Nd5 {[%clk 0:02:07.4]} 13. Bxg7 {[%clk 0:02:09.2]} 13... Kxg7 {[%clk
0:02:09.3]} 14. g3 {[%clk 0:01:57.6]} 14... a5 {[%clk 0:01:54.3]} 15. a4 {[%clk
0:01:51.3]} 15... b6 {[%clk 0:01:44.4]} 16. Ne5 {[%clk 0:01:45.9]} 16... Qxg5
{[%clk 0:01:21.6]} 17. Nxc6 {[%clk 0:01:39]} 17... Bb7 {[%clk 0:01:20.3]} 18.
Ne5 {[%clk 0:01:18]} 18... Nf4 {[%clk 0:01:02.4]} 0

[Event "Open Nuevo Centro. Jornada 1"]
[Site "Chess.com"]
[Date "2020.06.19"]
[Round "6"]
[White "Furio Martinez, Francisco"]
[Black "Cebri�n Granado, Guille"]
[Result "1/2-1/2"]
[WhiteElo "721"]
[BlackElo "477"]
[TimeControl "180+2"]
[EndTime "11:37:06 PDT"]
[Termination "Tablas por rey ahogado"]

1. d4 {[%clk 0:02:58.9]} 1... d5 {[%clk 0:02:58.9]} 2. e3 {[%clk 0:03:00.1]}
2... Nc6 {[%clk 0:02:52.6]} 3. Nf3 {[%clk 0:03:01.5]} 3... Nf6 {[%clk
0:02:53.9]} 4. Be2 {[%clk 0:03:02.4]} 4... Bf5 {[%clk 0:02:48.1]} 5. O-O {[%clk
0:03:03.6]} 5... Qd6 {[%clk 0:02:43.1]} 6. Nbd2 {[%clk 0:03:04.8]} 6... Nb4
{[%clk 0:02:40.8]} 7. b3 {[%clk 0:03:05.1]} 7... a5 {[%clk 0:02:41.6]} 8. Bb2
{[%clk 0:03:04.9]} 8... Ra6 {[%clk 0:02:42.7]} 9. Rc1 {[%clk 0:03:04.7]} 9... c6
{[%clk 0:02:42.6]} 10. Bxa6 {[%clk 0:03:03.9]} 10... e6 {[%clk 0:02:43.6]} 11.
Bxb7 {[%clk 0:03:02.7]} 11... g6 {[%clk 0:02:44.7]} 12. c4 {[%clk 0:02:50.4]}
12... Kd7 {[%clk 0:02:45.9]} 13. c5 {[%clk 0:02:50]} 13... Kc7 {[%clk
0:02:44.5]} 14. cxd6+ {[%clk 0:02:49.4]} 14... Kxd6 {[%clk 0:02:41.1]} 15. Bxc6
{[%clk 0:02:46.4]} 15... e5 {[%clk 0:02:41.4]} 16. dxe5+ {[%clk 0:02:46]} 16...
Ke7 {[%clk 0:02:36.2]} 17. exf6+ {[%clk 0:02:46]} 17... Kd8 {[%clk 0:02:28]} 18.
Bxd5 {[%clk 0:02:43.3]} 18... Nxd5 {[%clk 0:02:27.9]} 19. Rc5 {[%clk 0:02:41.9]}
19... Bxc5 {[%clk 0:02:26.3]} 20. g4 {[%clk 0:02:20.3]} 20... Bd3 {[%clk
0:02:27.8]} 21. Nb1 {[%clk 0:02:13.8]} 21... g5 {[%clk 0:02:29]} 22. Qxd3 {[%clk
0:02:11.9]} 22... Re8 {[%clk 0:02:11.8]} 23. Qxd5+ {[%clk 0:02:10.7]} 23... Kc8
{[%clk 0:02:07.7]} 24. Qxc5+ {[%clk 0:02:10.6]} 24... Kd8 {[%clk 0:02:05.7]} 25.
Qd5+ {[%clk 0:02:06.4]} 25... Kc8 {[%clk 0:02:05.5]} 26. Qc6+ {[%clk 0:02:06.1]}
26... Kd8 {[%clk 0:02:06.4]} 27. Qd6+ {[%clk 0:02:06.6]} 27... Kc8 {[%clk
0:02:07.1]} 28. Qa6+ {[%clk 0:02:05.2]} 28... Kd8 {[%clk 0:02:08.1]} 29. Qxa5+
{[%clk 0:02:05.8]} 29... Kc8 {[%clk 0:02:08.9]} 30. Qxg5 {[%clk 0:02:05.8]}
30... Kd8 {[%clk 0:02:09.7]} 31. Qd5+ {[%clk 0:02:04.6]} 31... Kc8 {[%clk
0:02:10.5]} 32. Qxf7 {[%clk 0:02:05.2]} 32... Kd8 {[%clk 0:02:11.2]} 33. Qxh7
{[%clk 0:02:04.7]} 33... Kc8 {[%clk 0:02:12.1]} 34. Rd1 {[%clk 0:02:03.7]} 34...
Kb8 {[%clk 0:02:07.4]} 35. Qd7 {[%clk 0:02:05]} 35... Rc8 {[%clk 0:02:07.9]} 36.
Rc1 {[%clk 0:02:00.3]} 36... Rc7 {[%clk 0:02:02.5]} 37. Rxc7 {[%clk 0:01:57]}
37... Ka8 {[%clk 0:02:02.8]} 38. Qc6+ {[%clk 0:01:56.1]} 38... Kb8 {[%clk
0:02:02.3]} 39. Rh7 {[%clk 0:01:56.7]} 1/2-1

[Event "Open Nuevo Centro. Jornada 1"]
[Site "Chess.com"]
[Date "2020.06.19"]
[Round "6"]
[White "Yuste Valenzuela, Alejandro"]
[Black "Gimenez Saiz, Jose Raul"]
[Result "1/2-1/2"]
[WhiteElo "1784"]
[BlackElo "1538"]
[TimeControl "180+2"]
[EndTime "11:37:22 PDT"]
[Termination "Tablas por repetición de movimientos"]

1. e4 {[%clk 0:03:01.9]} 1... d5 {[%clk 0:03:00.8]} 2. exd5 {[%clk 0:03:02.6]}
2... Nf6 {[%clk 0:03:02.1]} 3. Be2 {[%clk 0:03:03.2]} 3... Qxd5 {[%clk
0:03:02.1]} 4. Nf3 {[%clk 0:03:00]} 4... Bg4 {[%clk 0:03:02.1]} 5. Nc3 {[%clk
0:03:00.2]} 5... Qh5 {[%clk 0:03:02.3]} 6. d3 {[%clk 0:02:55.3]} 6... Nc6 {[%clk
0:03:00.8]} 7. Be3 {[%clk 0:02:54.2]} 7... O-O-O {[%clk 0:03:01.1]} 8. Qd2
{[%clk 0:02:45.6]} 8... e5 {[%clk 0:02:58.4]} 9. Ng5 {[%clk 0:02:16.3]} 9...
Bxe2 {[%clk 0:02:50.4]} 10. Qxe2 {[%clk 0:02:18.2]} 10... Qxe2+ {[%clk
0:02:50.8]} 11. Kxe2 {[%clk 0:02:20.1]} 11... Rd7 {[%clk 0:02:44.9]} 12. Nce4
{[%clk 0:02:05.9]} 12... Nxe4 {[%clk 0:02:30.1]} 13. dxe4 {[%clk 0:02:06.4]}
13... h6 {[%clk 0:02:29.7]} 14. Nf3 {[%clk 0:02:06.9]} 14... Bb4 {[%clk
0:02:22.7]} 15. c3 {[%clk 0:02:07.5]} 15... Ba5 {[%clk 0:02:22.6]} 16. b4 {[%clk
0:01:48.4]} 16... Bb6 {[%clk 0:02:15.3]} 17. Bxb6 {[%clk 0:01:48.7]} 17... axb6
{[%clk 0:02:15.7]} 18. b5 {[%clk 0:01:47]} 18... Na5 {[%clk 0:02:15.7]} 19. Rad1
{[%clk 0:01:45.2]} 19... f6 {[%clk 0:02:15.2]} 20. Rxd7 {[%clk 0:01:41.8]} 20...
Kxd7 {[%clk 0:02:16.1]} 21. Rd1+ {[%clk 0:01:42.4]} 21... Ke6 {[%clk 0:02:15.1]}
22. Nh4 {[%clk 0:01:41.1]} 22... g5 {[%clk 0:02:00.1]} 23. Nf5 {[%clk
0:01:40.5]} 23... Nc4 {[%clk 0:01:54.2]} 24. Ng7+ {[%clk 0:01:18.2]} 24... Ke7
{[%clk 0:01:50.3]} 25. Nf5+ {[%clk 0:01:14.3]} 25... Ke6 {[%clk 0:01:50.7]} 26.
Ng7+ {[%clk 0:01:01.8]} 26... Ke7 {[%clk 0:01:45.6]} 27. Nf5+ {[%clk 0:01:02.1]}
27... Ke6 {[%clk 0:01:45.6]} 1/2-1

[Event "Open Nuevo Centro. Jornada 1"]
[Site "Chess.com"]
[Date "2020.06.19"]
[Round "6"]
[White "Donate Moreno, David"]
[Black "Cebolla Ruiz, David"]
[Result "1-0"]
[WhiteElo "1514"]
[BlackElo "1634"]
[TimeControl "180+2"]
[EndTime "11:37:35 PDT"]
[Termination "Victoria de sylar48 por abandono"]

1. e4 {[%clk 0:03:01.9]} 1... c6 {[%clk 0:02:55.3]} 2. d4 {[%clk 0:03:02.3]}
2... d5 {[%clk 0:02:55.8]} 3. exd5 {[%clk 0:02:55.5]} 3... cxd5 {[%clk
0:02:55.7]} 4. Nf3 {[%clk 0:02:56.4]} 4... Nf6 {[%clk 0:02:54.9]} 5. Ne5 {[%clk
0:02:56]} 5... Nc6 {[%clk 0:02:53.5]} 6. Bb5 {[%clk 0:02:54.7]} 6... Bd7 {[%clk
0:02:45.7]} 7. Nxd7 {[%clk 0:02:48.7]} 7... Qxd7 {[%clk 0:02:45.5]} 8. c3 {[%clk
0:02:48.9]} 8... a6 {[%clk 0:02:43.4]} 9. Bd3 {[%clk 0:02:49.3]} 9... e6 {[%clk
0:02:42.7]} 10. Bf4 {[%clk 0:02:49.1]} 10... Be7 {[%clk 0:02:42.7]} 11. Nd2
{[%clk 0:02:49.4]} 11... O-O {[%clk 0:02:43.3]} 12. Nf3 {[%clk 0:02:49.1]} 12...
Bd6 {[%clk 0:02:33.2]} 13. Ne5 {[%clk 0:02:47.4]} 13... Bxe5 {[%clk 0:02:30.5]}
14. dxe5 {[%clk 0:02:46.5]} 14... Ne8 {[%clk 0:02:20.5]} 15. Qh5 {[%clk
0:02:46.3]} 15... f5 {[%clk 0:01:52.2]} 16. g4 {[%clk 0:02:16.1]} 16... g6
{[%clk 0:01:00.7]} 17. Qh3 {[%clk 0:02:07.5]} 17... Qg7 {[%clk 0:00:47.1]} 18.
O-O-O {[%clk 0:01:54.1]} 18... g5 {[%clk 0:00:24.2]} 19. gxf5 {[%clk 0:01:50.5]}
19... gxf4 {[%clk 0:00:24.5]} 20. Rhg1 {[%clk 0:01:48.4]} 20... Qxg1 {[%clk
0:00:19]} 21. Rxg1+ {[%clk 0:01:46.3]} 21... Ng7 {[%clk 0:00:20.1]} 22. f6
{[%clk 0:01:46.2]} 1

[Event "Open Nuevo Centro. Jornada 1"]
[Site "Chess.com"]
[Date "2020.06.19"]
[Round "6"]
[White "Gerona Maura, Jesus"]
[Black "Donate Moreno, Silvia"]
[Result "0-1"]
[WhiteElo "1523"]
[BlackElo "1780"]
[TimeControl "180+2"]
[EndTime "11:37:40 PDT"]
[Termination "Victoria de 2camarones por jaque mate"]

1. d4 {[%clk 0:03:01.9]} 1... Nf6 {[%clk 0:02:57]} 2. Nf3 {[%clk 0:03:02.3]}
2... g6 {[%clk 0:02:57.7]} 3. c4 {[%clk 0:03:00.6]} 3... Bg7 {[%clk 0:02:58.4]}
4. Nc3 {[%clk 0:03:01.8]} 4... d6 {[%clk 0:02:59.3]} 5. e4 {[%clk 0:03:01.7]}
5... O-O {[%clk 0:03:00.1]} 6. Be2 {[%clk 0:03:02.7]} 6... e5 {[%clk 0:03:00]}
7. O-O {[%clk 0:03:02.4]} 7... Na6 {[%clk 0:03:00]} 8. d5 {[%clk 0:02:57]} 8...
Nc5 {[%clk 0:02:59.4]} 9. Qc2 {[%clk 0:02:53.4]} 9... a5 {[%clk 0:02:59.8]} 10.
Be3 {[%clk 0:02:49.7]} 10... b6 {[%clk 0:02:59.8]} 11. a3 {[%clk 0:02:47.7]}
11... Ne8 {[%clk 0:02:40.2]} 12. b4 {[%clk 0:02:47.2]} 12... Na6 {[%clk
0:02:38.9]} 13. bxa5 {[%clk 0:02:43.9]} 13... bxa5 {[%clk 0:02:38.5]} 14. Rfb1
{[%clk 0:02:31.3]} 14... f5 {[%clk 0:02:36.4]} 15. Ne1 {[%clk 0:02:20.6]} 15...
f4 {[%clk 0:02:32]} 16. Bd2 {[%clk 0:02:16.3]} 16... Nc5 {[%clk 0:02:32]} 17. f3
{[%clk 0:02:17.2]} 17... g5 {[%clk 0:02:28.4]} 18. Nd3 {[%clk 0:02:16.7]} 18...
Nxd3 {[%clk 0:02:23.8]} 19. Qxd3 {[%clk 0:02:13.3]} 19... h5 {[%clk 0:02:21.6]}
20. c5 {[%clk 0:01:53.9]} 20... g4 {[%clk 0:02:16.1]} 21. cxd6 {[%clk
0:01:52.8]} 21... cxd6 {[%clk 0:02:13.6]} 22. Nb5 {[%clk 0:01:47.4]} 22... Qh4
{[%clk 0:01:54.4]} 23. Be1 {[%clk 0:01:43.4]} 23... g3 {[%clk 0:01:51.9]} 24.
hxg3 {[%clk 0:00:43.5]} 24... fxg3 {[%clk 0:01:51.8]} 25. f4 {[%clk 0:00:23.2]}
25... Qh2+ {[%clk 0:01:50.8]} 26. Kf1 {[%clk 0:00:23.7]} 26... Qh1# {[%clk
0:01:51.2]} 0

[Event "Open Nuevo Centro. Jornada 1"]
[Site "Chess.com"]
[Date "2020.06.19"]
[Round "6"]
[White "Ainsa Jimenez, Lucas"]
[Black "Serradilla Revert, Rodrigo"]
[Result "0-1"]
[WhiteElo "763"]
[BlackElo "673"]
[TimeControl "180+2"]
[EndTime "11:37:40 PDT"]
[Termination "Victoria de ordigo2011 por tiempo"]

1. e4 {[%clk 0:00:56.3]} 1... e5 {[%clk 0:02:53.1]} 2. Nf3 {[%clk 0:00:57.1]}
2... f6 {[%clk 0:02:51.4]} 3. Bc4 {[%clk 0:00:57.9]} 3... Nc6 {[%clk 0:02:46.7]}
4. d4 {[%clk 0:00:56.1]} 4... Nxd4 {[%clk 0:02:43.4]} 5. Nxd4 {[%clk 0:00:55.5]}
5... exd4 {[%clk 0:02:42.3]} 6. Qxd4 {[%clk 0:00:55.2]} 6... c5 {[%clk
0:02:35.2]} 7. Qd5 {[%clk 0:00:53.4]} 7... Qe7 {[%clk 0:02:22.7]} 8. O-O {[%clk
0:00:52.3]} 8... Nh6 {[%clk 0:02:09.1]} 9. Qh5+ {[%clk 0:00:49.3]} 9... Nf7
{[%clk 0:02:02.1]} 10. Bxf7+ {[%clk 0:00:42.8]} 10... Qxf7 {[%clk 0:02:00.4]}
11. Qxf7+ {[%clk 0:00:43.8]} 11... Kxf7 {[%clk 0:01:59.8]} 12. Re1 {[%clk
0:00:43.7]} 12... b6 {[%clk 0:01:54.2]} 13. Nc3 {[%clk 0:00:43.7]} 13... Ba6
{[%clk 0:01:52.8]} 14. Bf4 {[%clk 0:00:42.9]} 14... f5 {[%clk 0:01:49.1]} 15.
exf5 {[%clk 0:00:42.6]} 15... Re8 {[%clk 0:01:48]} 16. Rxe8 {[%clk 0:00:42.2]}
16... Kxe8 {[%clk 0:01:45]} 17. Re1+ {[%clk 0:00:42.3]} 17... Kf7 {[%clk
0:01:45.3]} 18. Nd5 {[%clk 0:00:41.7]} 18... Bc4 {[%clk 0:01:42.7]} 0

[Event "Open Nuevo Centro. Jornada 1"]
[Site "Chess.com"]
[Date "2020.06.19"]
[Round "6"]
[White "Borissov, Juli�n"]
[Black "Gukasov, Artem"]
[Result "1-0"]
[WhiteElo "1846"]
[BlackElo "1559"]
[TimeControl "180+2"]
[EndTime "11:37:42 PDT"]
[Termination "Victoria de julianborisov por jaque mate"]

1. e4 {[%clk 0:03:01.9]} 1... e6 {[%clk 0:02:59.5]} 2. d4 {[%clk 0:03:01.9]}
2... d5 {[%clk 0:03:00.5]} 3. Nc3 {[%clk 0:03:01]} 3... Nf6 {[%clk 0:02:59.2]}
4. e5 {[%clk 0:03:00.7]} 4... Nfd7 {[%clk 0:02:59.3]} 5. f4 {[%clk 0:03:01.4]}
5... c5 {[%clk 0:02:55.5]} 6. Nf3 {[%clk 0:03:02.1]} 6... Nc6 {[%clk 0:02:55.5]}
7. Be3 {[%clk 0:03:01.6]} 7... Qb6 {[%clk 0:02:55.2]} 8. Na4 {[%clk 0:01:51]}
8... Qa5+ {[%clk 0:02:48.2]} 9. c3 {[%clk 0:01:51]} 9... cxd4 {[%clk 0:02:36.2]}
10. Nxd4 {[%clk 0:01:48.3]} 10... Nb6 {[%clk 0:02:32.7]} 11. Nxb6 {[%clk
0:01:44.8]} 11... Qxb6 {[%clk 0:02:32]} 12. b4 {[%clk 0:01:39]} 12... Nxd4
{[%clk 0:02:26.3]} 13. Bxd4 {[%clk 0:01:39.4]} 13... Qc7 {[%clk 0:02:27.3]} 14.
Bd3 {[%clk 0:01:36.1]} 14... Bd7 {[%clk 0:02:26.5]} 15. O-O {[%clk 0:01:31.9]}
15... Be7 {[%clk 0:02:26.1]} 16. a4 {[%clk 0:01:18.2]} 16... O-O {[%clk
0:02:18.8]} 17. h4 {[%clk 0:01:11.7]} 17... f6 {[%clk 0:02:15.6]} 18. Qe2 {[%clk
0:00:37.1]} 18... fxe5 {[%clk 0:02:14.8]} 19. Bxe5 {[%clk 0:00:37.5]} 19... Qd8
{[%clk 0:02:11.4]} 20. Qg4 {[%clk 0:00:36.6]} 20... Bf6 {[%clk 0:02:11.1]} 21.
Qh5 {[%clk 0:00:24.4]} 21... h6 {[%clk 0:02:06]} 22. Qg6 {[%clk 0:00:23.2]}
22... Rc8 {[%clk 0:01:57.6]} 23. Bd6 {[%clk 0:00:22.3]} 23... Be7 {[%clk
0:01:52.7]} 24. Qh7+ {[%clk 0:00:20.7]} 24... Kf7 {[%clk 0:01:53.4]} 25. Bg6+
{[%clk 0:00:21.4]} 25... Kf6 {[%clk 0:01:53.7]} 26. Be5# {[%clk 0:00:22.3]} 1

[Event "Open Nuevo Centro. Jornada 1"]
[Site "Chess.com"]
[Date "2020.06.19"]
[Round "6"]
[White "Fitzpatrick Dimas  , Andrew "]
[Black "Morata Briones, Carlos"]
[Result "1-0"]
[WhiteElo "1137"]
[BlackElo "666"]
[TimeControl "180+2"]
[EndTime "11:38:01 PDT"]
[Termination "Victoria de Andrewlito por jaque mate"]

1. e4 {[%clk 0:03:01.9]} 1... e5 {[%clk 0:03:00.3]} 2. Nf3 {[%clk 0:03:02.3]}
2... Nc6 {[%clk 0:02:59]} 3. Nc3 {[%clk 0:03:02.7]} 3... Nf6 {[%clk 0:02:52.8]}
4. Bc4 {[%clk 0:03:01]} 4... Bc5 {[%clk 0:02:50.6]} 5. d3 {[%clk 0:03:00.9]}
5... O-O {[%clk 0:02:50.5]} 6. O-O {[%clk 0:02:59.7]} 6... d6 {[%clk 0:02:51]}
7. Bg5 {[%clk 0:02:58.8]} 7... h6 {[%clk 0:02:46.9]} 8. Bxf6 {[%clk 0:02:58.6]}
8... Qxf6 {[%clk 0:02:47.1]} 9. h3 {[%clk 0:02:59]} 9... Nd4 {[%clk 0:02:44.9]}
10. Nxd4 {[%clk 0:02:58.2]} 10... Bxd4 {[%clk 0:02:44.5]} 11. Nd5 {[%clk
0:02:56.3]} 11... Qd8 {[%clk 0:02:31.3]} 12. c3 {[%clk 0:02:53.1]} 12... Bc5
{[%clk 0:02:29.8]} 13. Qh5 {[%clk 0:02:44.7]} 13... Kh8 {[%clk 0:02:18.5]} 14.
b4 {[%clk 0:02:38.7]} 14... Bb6 {[%clk 0:02:11.1]} 15. a4 {[%clk 0:02:38.5]}
15... a5 {[%clk 0:02:08.3]} 16. Nxb6 {[%clk 0:02:33.3]} 16... cxb6 {[%clk
0:02:05.6]} 17. bxa5 {[%clk 0:02:33]} 17... bxa5 {[%clk 0:02:05.4]} 18. d4
{[%clk 0:02:31.2]} 18... Qf6 {[%clk 0:02:01.8]} 19. dxe5 {[%clk 0:02:28.6]}
19... dxe5 {[%clk 0:02:01.4]} 20. Bd5 {[%clk 0:02:17.8]} 20... Qg6 {[%clk
0:02:01.3]} 21. Qxg6 {[%clk 0:02:15.8]} 21... fxg6 {[%clk 0:02:01.5]} 22. Rab1
{[%clk 0:02:15.8]} 22... Ra6 {[%clk 0:01:50.8]} 23. Bxb7 {[%clk 0:02:13.5]}
23... Bxb7 {[%clk 0:01:50.8]} 24. Rxb7 {[%clk 0:02:13.8]} 24... g5 {[%clk
0:01:48.1]} 25. Re7 {[%clk 0:02:13.6]} 25... Rff6 {[%clk 0:01:37.7]} 26. Rxe5
{[%clk 0:02:11.3]} 26... Kh7 {[%clk 0:01:36.7]} 27. Rc1 {[%clk 0:02:09.4]} 27...
Rf4 {[%clk 0:01:31.2]} 28. c4 {[%clk 0:02:06.9]} 28... Raf6 {[%clk 0:01:31]} 29.
Rf5 {[%clk 0:01:52.3]} 29... R6xf5 {[%clk 0:01:30.2]} 30. exf5 {[%clk
0:01:52.3]} 30... Rxf5 {[%clk 0:01:30.6]} 31. c5 {[%clk 0:01:53.2]} 31... Rf7
{[%clk 0:01:26.8]} 32. c6 {[%clk 0:01:52.7]} 32... Rc7 {[%clk 0:01:27]} 33. Kf1
{[%clk 0:01:53.5]} 33... Kg6 {[%clk 0:01:26.1]} 34. Ke2 {[%clk 0:01:54.1]} 34...
Re7+ {[%clk 0:01:25.4]} 35. Kd3 {[%clk 0:01:53.9]} 35... Rc7 {[%clk 0:01:24.8]}
36. Kd4 {[%clk 0:01:54.4]} 36... Kf7 {[%clk 0:01:26.7]} 37. Kd5 {[%clk
0:01:54.3]} 37... Ke8 {[%clk 0:01:27.3]} 38. Kd6 {[%clk 0:01:52.1]} 38... Kd8
{[%clk 0:01:27.9]} 39. Rc5 {[%clk 0:01:49.5]} 39... Kc8 {[%clk 0:01:21.3]} 40.
Rxa5 {[%clk 0:01:44.9]} 40... g6 {[%clk 0:01:15.2]} 41. Ra8# {[%clk 0:01:44.1]}
1